fUSD/lending_fUSD_20250929
["ID","MTS","AMOUNT","RATE_DAILY","PERIOD"]
[388366301,1759126246079,-203.46208508,0.00019973,2]
[388366302,1759126246088,-500.0,0.00019973,2]
[388366303,1759126246097,-500.0,0.00019973,2]
[388366304,1759126246107,-500.0,0.00019973,2]
[388366305,1759126246116,-500.0,0.00019973,2]
[388366306,1759126246126,-500.0,0.00019973,2]
[388366307,1759126246135,-500.0,0.00019973,2]
[388366308,1759126246145,-571.86697367,0.00019973,2]
[388366309,1759126246155,-500.0,0.00019973,2]
[388366310,1759126246165,-500.0,0.00019973,2]
[388366311,1759126246174,-167.84790287,0.00019973,2]
[388366312,1759126246184,-500.0,0.00019973,2]
[388366313,1759126246193,-500.86166811,0.00019973,2]
[388366314,1759126246204,-500.0,0.00019973,2]
[388366315,1759126246214,-500.0,0.00019973,2]
[388366316,1759126246223,-500.0,0.00019973,2]
[388366317,1759126246233,-500.0,0.00019973,2]
[388366318,1759126246243,-500.0,0.00019973,2]
[388366319,1759126246252,-500.0,0.00019973,2]
[388366320,1759126246262,-500.0,0.00019973,2]
[388366321,1759126246272,-500.0,0.00019973,2]
[388366322,1759126246283,-500.0,0.00019973,2]
[388366323,1759126246292,-500.0,0.00019973,2]
[388366324,1759126246304,-500.56999013,0.00019973,2]
[388366325,1759126246314,-547.25014336,0.00019973,2]
[388366326,1759126246324,-500.0,0.00019973,2]
[388366327,1759126246333,-500.0,0.00019973,2]
[388366328,1759126246343,-529.14518882,0.00019973,2]
[388366329,1759126246353,-500.0,0.00019973,2]
[388366330,1759126246363,-150.0,0.00019973,2]
[388366331,1759126246372,-527.2514745,0.00019973,2]
[388366332,1759126246382,-500.0,0.00019973,2]
[388366333,1759126246391,-500.0,0.00019973,2]
[388366334,1759126246405,-500.0,0.00019973,2]
[388366335,1759126246416,-500.0,0.00019973,2]
[388366336,1759126246425,-500.0,0.00019973,2]
[388366337,1759126246435,-500.0,0.00019973,2]
[388366338,1759126246444,-500.0,0.00019973,2]
[388366339,1759126246453,-500.0,0.00019973,2]
[388366340,1759126246463,-500.0,0.00019973,2]
[388366341,1759126246472,-500.0,0.00019973,2]
[388366342,1759126246482,-500.0,0.00019973,2]
[388366343,1759126246492,-500.0,0.00019973,2]
[388366344,1759126246501,-161.16816585,0.00019973,2]
[388366345,1759126246510,-500.0,0.00019973,2]
[388366346,1759126246520,-500.0,0.00019973,2]
[388366347,1759126246529,-508.27789364,0.00019973,2]
[388366348,1759126246539,-207.23736614,0.00019973,2]
[388366349,1759126246548,-500.0,0.00019973,2]
[388366350,1759126246558,-500.0,0.00019973,2]
[388366351,1759126246568,-500.0,0.00019973,2]
[388366352,1759126246578,-500.0,0.00019973,2]
[388366353,1759126246587,-500.0,0.00019973,2]
[388366354,1759126246596,-500.65353541,0.00019973,2]
[388366355,1759126246607,-500.0,0.00019973,2]
[388366356,1759126246616,-500.0,0.00019973,2]
[388366357,1759126246626,-300.0,0.00019999,2]
[388366358,1759126246635,-666.0,0.00019999,2]
[388366359,1759126246645,-300.0,0.00019999,2]
[388366360,1759126246654,-666.0,0.00019999,2]
[388366361,1759126246664,-155.0,0.00019999,2]
[388366362,1759126246673,-1000.0,0.00019999,2]
[388366363,1759126246684,-1000.0,0.00019999,2]
[388366364,1759126246694,-1000.0,0.00019999,2]
[388366365,1759126246704,-1000.0,0.00019999,2]
[388366366,1759126246714,-1000.0,0.00019999,2]
[388366367,1759126246724,-1000.0,0.00019999,2]
[388366368,1759126246734,-1000.0,0.00019999,2]
[388366369,1759126246744,-1000.0,0.00019999,2]
[388366370,1759126246754,-1000.0,0.00019999,2]
[388366371,1759126246763,-647.0,0.0002,2]
[388366372,1759126246773,-19814.30310949,0.0002,2]
[388366373,1759126246783,-194330.12791829,0.0002,2]
[388366374,1759126246792,-251833.36197475,0.0002,2]
[388366375,1759126247667,-1228.70995505,0.0002,2]
[388366376,1759126247679,-1086.05742157,0.0002,2]
[388366377,1759126247691,-3103.7752659,0.0002,2]
[388366378,1759126247703,-4960.73331159,0.0002,2]
[388366379,1759126247715,-2188.98884679,0.0002,2]
[388366380,1759126247757,-2995.64324461,0.0002,2]
[388366381,1759126247768,-3153.33138797,0.0002,5]
[388366382,1759126247777,-8639.1844386,0.0002,2]
[388366383,1759126247832,-14949.67831231,0.0002,2]
[388366384,1759126247843,-5668.91168991,0.0002,2]
[388366385,1759126247855,-3305.71041098,0.0002,2]
[388366386,1759126247900,150.0,0.000245,30]
[388366387,1759126249983,-500.0,0.00016412,2]
[388366388,1759126249992,-500.0,0.00019199,2]
[388366389,1759126250002,-500.0,0.00019199,2]
[388366390,1759126250011,-500.0,0.00019199,2]
[388366391,1759126250021,-185.26040019,0.00019199,2]
[388366392,1759126250031,-500.0,0.00019199,2]
[388366393,1759126250040,-50.21551693,0.00019199,2]
[388366394,1759126251368,-449.78448307,0.00019199,2]
[388366395,1759126251379,-500.0,0.00019199,2]
[388366396,1759126251389,-500.0,0.00019199,2]
[388366397,1759126251400,-500.0,0.00019199,2]
[388366398,1759126251411,-500.0,0.00019199,2]
[388366399,1759126251421,-510.29749053,0.00019199,2]
[388366400,1759126251431,-500.0,0.00019199,2]
[388366401,1759126251442,-1539.9289564,0.000199,2]
[388366402,1759126251454,-2958.63295913,0.000199,2]
[388366403,1759126251464,-607.59831864,0.0002,2]
[388366404,1759126251510,-466.81370507,0.0002,2]
[388366405,1759126251584,-503.29465224,0.0002,2]
[388366406,1759126368534,253.15605641,0.000245,30]
[388366407,1759126369823,500.0,0.000245,30]
[388366408,1759126372590,745.0,0.000245,30]
[388366409,1759126382731,499.0,0.000245,30]
[388366410,1759126466994,546.0,0.000245,30]
[388366411,1759126478696,500.0,0.000245,30]
[388366412,1759126480993,560.0,0.000245,30]
[388366413,1759126486817,150.0,0.000245,30]
[388366414,1759126594701,250.0,0.000245,30]
[388366415,1759126595328,552.0,0.000245,30]
[388366416,1759126702055,150.0,0.000245,30]
[388366417,1759126704622,500.0,0.000245,30]
[388366418,1759126709373,180.0,0.00024384,30]
[388366419,1759126744113,180.0,0.00024384,30]
[388366420,1759126791905,180.0,0.00024384,30]
[388366421,1759126817771,-530.6009,0.00017073,2]
[388366422,1759126817798,-165.95,0.00018386,2]
[388366423,1759126820727,-1602.54144461,0.00018386,2]
[388366424,1759126892375,2026.79204366,0.00025,120]
[388366425,1759126944298,150.0,0.000245,30]
[388366426,1759126945368,500.0,0.000245,30]
[388366427,1759126948587,500.0,0.000245,30]
[388366428,1759126949581,-3153.33138797,0.00018283,2]
[388366429,1759126952050,248.54890191,0.000245,30]
[388366430,1759126954294,2974.0,0.000245,30]
[388366431,1759126961077,150.0,0.000245,30]
[388366432,1759126962435,150.0,0.000245,30]
[388366433,1759126967912,150.0,0.000245,30]
[388366434,1759126975507,523.0,0.000245,30]
[388366435,1759126987150,500.0,0.000245,30]
[388366436,1759126988806,537.0,0.000245,30]
[388366437,1759126999016,150.0,0.000245,30]
[388366438,1759127001702,150.0,0.000245,30]
[388366439,1759127004209,500.0,0.000245,30]
[388366440,1759127063398,155.79,9.049e-05,2]
[388366441,1759127063567,155.79,0.00013573,2]
[388366443,1759127204156,150.0,0.000245,30]
[388366444,1759127215988,263.59444781,0.000245,30]
[388366445,1759127296542,529.0,0.000245,30]
[388366447,1759127318208,220.30103915,0.0001421,7]
[388366450,1759127400529,-165.95,0.000174,2]
[388366477,1759127433943,-63.05,0.000174,2]
[388366478,1759127433954,-152.0,0.00017598,3]
[388366479,1759127433967,-639.0,0.00017999,2]
[388366480,1759127433977,-23.62466322,0.00017999,2]
[388366481,1759127434025,-158.37533678,0.00017999,2]
[388366482,1759127434035,-1200.0,0.00017999,2]
[388366483,1759127434045,-300.0,0.00017999,2]
[388366484,1759127434055,-300.0,0.00017999,2]
[388366485,1759127434066,-150.0,0.00018,2]
[388366486,1759127434076,-150.0,0.00018,2]
[388366487,1759127434086,-150.0,0.00018,2]
[388366488,1759127434096,-150.0,0.00018,2]
[388366489,1759127434106,-150.0,0.00018,2]
[388366490,1759127434117,-150.0,0.00018,2]
[388366491,1759127434127,-150.0,0.00018,2]
[388366492,1759127434137,-150.0,0.00018,2]
[388366493,1759127434147,-150.0,0.00018,2]
[388366494,1759127434156,-150.0,0.00018,2]
[388366495,1759127434166,-150.0,0.00018,2]
[388366496,1759127434176,-150.0,0.00018,2]
[388366497,1759127434186,-150.0,0.00018,2]
[388366498,1759127434195,-150.0,0.00018,2]
[388366499,1759127434204,-150.0,0.00018,2]
[388366500,1759127434215,-150.0,0.00018,2]
[388366501,1759127434225,-150.0,0.00018,2]
[388366502,1759127434235,-167.69,0.00018017,2]
[388366503,1759127434245,-150.0,0.00018026,2]
[388366504,1759127434254,-150.0,0.00018032,2]
[388366505,1759127434264,-150.0,0.0001805,2]
[388366506,1759127434273,-150.0,0.00018051,2]
[388366507,1759127434284,-150.0,0.00018053,2]
[388366508,1759127434296,-150.0,0.00018059,2]
[388366509,1759127434305,-150.0,0.00018059,2]
[388366510,1759127434315,-150.0,0.00018063,2]
[388366511,1759127434325,-150.0,0.00018065,2]
[388366512,1759127434334,-150.0,0.00018069,2]
[388366513,1759127434344,-150.0,0.00018077,2]
[388366514,1759127434354,-150.0,0.00018077,2]
[388366515,1759127434364,-150.0,0.00018083,2]
[388366516,1759127434373,-150.0,0.00018097,2]
[388366517,1759127434383,-155.79,0.00018097,2]
[388366518,1759127434393,-150.0,0.000181,2]
[388366519,1759127434403,-150.0,0.00018103,2]
[388366520,1759127434413,-150.0,0.00018105,2]
[388366521,1759127434422,-150.0,0.00018118,2]
[388366522,1759127434433,-150.0,0.00018118,2]
[388366523,1759127434442,-150.0,0.00018118,2]
[388366524,1759127434452,-150.0,0.00018125,2]
[388366525,1759127434463,-150.0,0.00018128,2]
[388366526,1759127434473,-150.0,0.00018129,2]
[388366527,1759127434483,-150.0,0.00018138,2]
[388366528,1759127434493,-152.76,0.00018138,2]
[388366529,1759127434502,-1000.0,0.00018138,2]
[388366530,1759127434512,-150.0,0.0001815,2]
[388366531,1759127434522,-150.0,0.00018154,2]
[388366532,1759127434531,-150.0,0.00018154,2]
[388366533,1759127434542,-150.0,0.00018158,2]
[388366534,1759127434551,-150.0,0.00018161,2]
[388366535,1759127434561,-150.0,0.00018167,2]
[388366536,1759127434571,-150.0,0.00018167,2]
[388366537,1759127434580,-150.0,0.00018176,2]
[388366538,1759127434590,-150.0,0.00018176,2]
[388366539,1759127434599,-150.0,0.00018179,2]
[388366540,1759127434608,-150.0,0.00018188,2]
[388366541,1759127434617,-150.0,0.00018194,2]
[388366542,1759127434626,-150.0,0.000182,2]
[388366543,1759127434635,-150.0,0.00018205,2]
[388366544,1759127434645,-150.0,0.00018207,2]
[388366545,1759127434654,-150.0,0.00018211,2]
[388366546,1759127434663,-150.0,0.00018226,2]
[388366547,1759127434672,-150.0,0.00018231,2]
[388366548,1759127434683,-150.0,0.00018231,2]
[388366549,1759127434692,-150.0,0.00018235,2]
[388366550,1759127434703,-150.0,0.00018235,2]
[388366551,1759127434713,-150.0,0.00018235,2]
[388366552,1759127434723,-666.0,0.00018248,3]
[388366553,1759127434733,-200.0,0.00018248,2]
[388366554,1759127434743,-150.22,0.00018248,2]
[388366555,1759127434754,-152.04,0.00018248,2]
[388366556,1759127434764,-150.03,0.00018248,2]
[388366557,1759127434774,-150.68,0.00018248,2]
[388366558,1759127434783,-151.43,0.00018248,2]
[388366559,1759127434793,-150.53,0.00018248,2]
[388366560,1759127434803,-151.86,0.00018248,2]
[388366561,1759127434814,-150.41,0.00018248,2]
[388366562,1759127434824,-150.94,0.00018248,2]
[388366563,1759127434834,-150.0,0.0001825,2]
[388366564,1759127434844,-150.0,0.0001825,2]
[388366565,1759127434854,-150.0,0.0001825,2]
[388366566,1759127434865,-150.0,0.0001825,2]
[388366567,1759127434875,-150.0,0.00018256,2]
[388366568,1759127434885,-150.0,0.00018258,2]
[388366569,1759127434897,-150.0,0.00018263,2]
[388366570,1759127434906,-261.10932953,0.00018264,2]
[388366571,1759127434916,-150.0,0.00018276,2]
[388366572,1759127434927,-150.0,0.00018282,2]
[388366573,1759127434942,-6641.71861203,0.00018283,2]
[388366574,1759127434951,-152.43,0.00018283,2]
[388366575,1759127434962,-152.22,0.00018283,2]
[388366576,1759127434972,-150.0,0.0001829,2]
[388366577,1759127434982,-150.0,0.00018294,2]
[388366578,1759127434992,-150.0,0.00018294,2]
[388366579,1759127435002,-150.0,0.000183,2]
[388366580,1759127435012,-150.0,0.00018308,2]
[388366581,1759127435022,-150.0,0.00018308,2]
[388366582,1759127435032,-150.0,0.00018313,2]
[388366583,1759127435043,-150.0,0.00018316,2]
[388366584,1759127435059,-150.0,0.00018323,2]
[388366585,1759127435070,-150.0,0.00018333,2]
[388366586,1759127435080,-150.0,0.00018333,2]
[388366587,1759127435090,-150.0,0.00018333,2]
[388366588,1759127435101,-150.0,0.00018345,2]
[388366589,1759127435111,-150.0,0.0001835,2]
[388366590,1759127435121,-150.0,0.00018353,2]
[388366591,1759127435132,-150.0,0.00018353,2]
[388366592,1759127435142,-150.0,0.00018353,2]
[388366593,1759127435153,-150.0,0.00018355,2]
[388366594,1759127435163,-150.0,0.00018359,2]
[388366595,1759127435174,-150.0,0.00018368,2]
[388366596,1759127435184,-150.0,0.00018375,2]
[388366597,1759127435195,-150.0,0.00018385,2]
[388366598,1759127435206,-150.0,0.00018385,2]
[388366599,1759127435217,-150.9,0.00018385,2]
[388366600,1759127435227,-151.95,0.00018385,2]
[388366601,1759127435238,-152.87,0.00018385,2]
[388366602,1759127435249,-1279.91855539,0.00018386,2]
[388366603,1759127435260,-152.59,0.00018386,2]
[388366604,1759127435271,-152.94,0.00018386,2]
[388366605,1759127435282,-150.36,0.00018386,2]
[388366606,1759127435297,-150.9,0.00018386,2]
[388366607,1759127435308,-151.88,0.00018386,2]
[388366608,1759127435318,-151.23,0.00018386,2]
[388366609,1759127435329,-151.22,0.00018386,2]
[388366610,1759127435339,-152.38,0.00018386,2]
[388366611,1759127435350,-152.76,0.00018386,2]
[388366612,1759127435361,-150.0,0.00018387,2]
[388366613,1759127435372,-150.0,0.000184,2]
[388366614,1759127435383,-150.0,0.0001841,2]
[388366615,1759127435393,-150.0,0.00018412,2]
[388366616,1759127435405,-150.0,0.00018412,2]
[388366617,1759127435415,-150.0,0.00018414,2]
[388366618,1759127435426,-150.0,0.00018417,2]
[388366619,1759127435435,-150.0,0.00018419,2]
[388366620,1759127435452,-150.0,0.00018421,2]
[388366621,1759127435463,-150.0,0.00018436,2]
[388366622,1759127435473,-150.0,0.00018438,2]
[388366623,1759127435484,-150.0,0.0001845,2]
[388366624,1759127435494,-150.0,0.00018452,2]
[388366625,1759127435505,-150.0,0.00018462,2]
[388366626,1759127435515,-150.0,0.00018462,2]
[388366627,1759127435526,-150.0,0.00018471,2]
[388366628,1759127435536,-150.0,0.00018471,2]
[388366629,1759127435547,-150.0,0.00018471,2]
[388366630,1759127435559,-150.0,0.00018474,2]
[388366631,1759127435569,-150.0,0.00018483,2]
[388366632,1759127435580,-150.0,0.00018484,2]
[388366633,1759127435590,-150.0,0.00018487,2]
[388366634,1759127435601,-150.0,0.000185,2]
[388366635,1759127435611,-150.0,0.000185,2]
[388366636,1759127435621,-150.0,0.000185,2]
[388366637,1759127435631,-150.0,0.000185,2]
[388366638,1759127435642,-150.0,0.000185,2]
[388366639,1759127435652,-150.0,0.000185,2]
[388366640,1759127435663,-150.0,0.00018513,2]
[388366641,1759127435674,-150.0,0.00018516,2]
[388366642,1759127435684,-150.0,0.00018526,2]
[388366643,1759127435695,-150.0,0.00018529,2]
[388366644,1759127435706,-150.0,0.00018529,2]
[388366645,1759127435717,-150.0,0.00018538,2]
[388366646,1759127435727,-150.0,0.00018538,2]
[388366647,1759127435736,-150.0,0.00018548,2]
[388366648,1759127435748,-150.0,0.0001855,2]
[388366649,1759127435758,-150.0,0.00018552,2]
[388366650,1759127435769,-150.0,0.00018563,2]
[388366651,1759127435779,-150.0,0.00018564,2]
[388366652,1759127435790,-150.0,0.00018579,2]
[388366653,1759127435800,-224.0,0.0001858,2]
[388366654,1759127435810,-150.0,0.00018581,2]
[388366655,1759127435820,-150.0,0.00018583,2]
[388366656,1759127435830,-150.0,0.00018588,2]
[388366657,1759127435846,-150.0,0.00018588,2]
[388366658,1759127435857,-150.0,0.00018588,2]
[388366659,1759127435867,-150.0,0.0001859,2]
[388366660,1759127435877,-150.0,0.000186,2]
[388366661,1759127435887,-603.31126898,0.000186,2]
[388366662,1759127435897,-2262.13807279,0.000186,2]
[388366663,1759127435908,-331.61516376,0.000186,2]
[388366664,1759127435920,-150.0,0.00018613,2]
[388366665,1759127435931,-150.0,0.00018615,2]
[388366666,1759127435942,-150.0,0.00018615,2]
[388366667,1759127435952,-150.0,0.00018621,2]
[388366668,1759127435963,-150.0,0.00018625,2]
[388366669,1759127435973,-150.0,0.00018632,2]
[388366670,1759127435983,-150.0,0.00018641,2]
[388366671,1759127435994,-150.0,0.00018645,2]
[388366672,1759127436005,-150.0,0.00018647,2]
[388366673,1759127436015,-150.0,0.00018647,2]
[388366674,1759127436026,-150.0,0.0001865,2]
[388366675,1759127436036,-150.0,0.00018667,2]
[388366676,1759127436046,-150.0,0.00018667,2]
[388366677,1759127436056,-150.0,0.00018667,2]
[388366678,1759127436067,-500.0,0.00018673,2]
[388366679,1759127436078,-500.0,0.00018673,2]
[388366680,1759127436088,-500.377846,0.00018673,2]
[388366681,1759127436099,-500.0,0.00018673,2]
[388366682,1759127436109,-500.0,0.00018673,2]
[388366683,1759127436119,-500.0,0.00018673,2]
[388366684,1759127436130,-500.0,0.00018673,2]
[388366685,1759127436141,-500.0,0.00018673,2]
[388366686,1759127436151,-500.0,0.00018673,2]
[388366687,1759127436162,-500.0,0.00018673,2]
[388366688,1759127436172,-500.0,0.00018673,2]
[388366689,1759127436182,-500.0,0.00018673,2]
[388366690,1759127436193,-500.0,0.00018673,2]
[388366691,1759127436204,-500.0,0.00018673,2]
[388366692,1759127436218,-500.0,0.00018673,2]
[388366693,1759127436229,-150.0,0.00018677,2]
[388366694,1759127436238,-150.0,0.00018684,2]
[388366695,1759127436249,-150.0,0.00018688,2]
[388366696,1759127436259,-150.0,0.0001869,2]
[388366697,1759127436269,-1507.7,0.0001869,2]
[388366698,1759127436280,-1507.7,0.0001869,2]
[388366699,1759127436294,-150.0,0.00018692,2]
[388366700,1759127436304,-150.0,0.00018692,2]
[388366701,1759127436315,-248.46880587,0.00018699,2]
[388366702,1759127436325,-527.25177783,0.00018699,2]
[388366703,1759127436336,-218.9484484,0.00018699,2]
[388366704,1759127436347,-427.67471159,0.00018699,2]
[388366705,1759127436357,-353.91782224,0.00018699,2]
[388366706,1759127436368,-22798.03218326,0.000187,2]
[388366707,1759127436378,-10935.2372376,0.000187,3]
[388366708,1759127436397,-9034.6964362,0.000187,3]
[388366709,1759127436409,-2981.35457578,0.000187,3]
[388366710,1759127436480,-295.2742552,0.000187,3]
[388366711,1759127436618,-561.54633933,0.000187,3]
[388366712,1759127436680,-1212.37116,0.000187,3]
[388366713,1759127436691,-418.59,0.000187,3]
[388366714,1759127437701,501.0,0.000245,30]
[388367220,1759127443552,-262.43478963,0.000187,2]
[388367222,1759127443563,-411.90879416,0.000187,2]
[388367229,1759127443619,-361.34444465,0.000187,2]
[388367255,1759127443852,500.0,0.000245,30]
[388367372,1759127445103,-461.55,0.000187,2]
[388367374,1759127445115,-5967.45814755,0.000187,2]
[388367428,1759127445627,-896.55760133,0.000187,2]
[388367430,1759127445639,-338.01,0.000187,2]
[388367432,1759127445651,-7375.92829,0.000187,2]
[388367435,1759127445663,-203406.51220958,0.000187,2]
[388367437,1759127445672,-633769.73002815,0.000187,3]
[388367440,1759127445689,-5560.16787083,0.000187,3]
[388367442,1759127445700,-303.15271724,0.000187,3]
[388367444,1759127445711,-6170.25,0.000187,3]
[388367447,1759127445725,-400.0,0.000187,3]
[388367449,1759127445736,-17040.0,0.000187,3]
[388367630,1759127448901,-251.4417914,0.000187,3]
[388367631,1759127448949,-51.05950856,0.000187,3]
[388367632,1759127452892,-525.3789422,0.000187,3]
[388367633,1759127454802,500.0,0.000245,30]
[388367634,1759127457220,514.0,0.000245,30]
[388367635,1759127501747,-8639.1844386,0.000187,3]
[388367637,1759127595346,180.3,0.00024384,30]
[388367955,1759127639499,100240.62511125,0.000245,30]
[388367958,1759127896671,748.78,0.000255,120]
[388367959,1759127905484,374.39,0.000255,120]
[388367995,1759128218991,155.12,8.929e-05,2]
[388367996,1759128219152,155.12,0.00013393,2]
[388368048,1759128633709,-432.74539029,0.000177,2]
[388368049,1759128633720,-279.0,0.00017797,2]
[388368050,1759128633729,-223.77,0.00017801,2]
[388368051,1759128633739,-279.0,0.00017807,2]
[388368052,1759128633749,-155.12,0.00017857,2]
[388368053,1759128633760,-381.91,0.00017887,2]
[388368054,1759128633771,-938.56909642,0.000179,2]
[388368055,1759128633851,-61.43090358,0.000179,2]
[388368056,1759128633861,-1819.17,0.00017907,2]
[388368057,1759128633871,-200.0,0.00017929,2]
[388368058,1759128633881,-667.69,0.00017935,2]
[388368059,1759128633891,-250.0,0.00017935,2]
[388368060,1759128633901,-165.95,0.00017947,2]
[388368061,1759128633911,-150.00000001,0.00018,2]
[388368062,1759128633921,-150.0,0.00018,2]
[388368063,1759128633931,-150.0,0.00018,2]
[388368064,1759128633942,-150.0,0.00018,2]
[388368065,1759128633952,-1200.0,0.00018199,2]
[388368066,1759128633962,-220.0,0.000182,2]
[388368067,1759128633972,-168.0,0.00018291,2]
[388368068,1759128633984,-279.0,0.00018293,2]
[388368069,1759128633994,-279.0,0.00018311,2]
[388368070,1759128634004,-168.0,0.0001832,2]
[388368071,1759128634013,-279.0,0.00018412,2]
[388368072,1759128634024,-802.5260007,0.00018453,2]
[388368073,1759128634034,-300.0,0.00018498,2]
[388368074,1759128634043,-170.43,0.00018501,2]
[388368075,1759128634053,-152.43,0.00018501,2]
[388368076,1759128634063,-151.62,0.00018502,2]
[388368077,1759128634073,-150.3,0.00018502,2]
[388368078,1759128634083,-152.19,0.00018506,2]
[388368079,1759128634092,-151.75,0.00018506,2]
[388368080,1759128634102,-151.96,0.00018506,2]
[388368081,1759128634112,-300.0,0.00018524,2]
[388368082,1759128634122,-152.19,0.00018524,2]
[388368083,1759128634132,-152.79,0.00018524,2]
[388368084,1759128634142,-500.0,0.00018573,2]
[388368085,1759128634153,-500.0,0.00018573,2]
[388368086,1759128634164,-164.90147579,0.00018573,2]
[388368087,1759128634174,-159.5304696,0.00018573,2]
[388368088,1759128634184,-170.39773331,0.00018573,2]
[388368089,1759128634194,-167.00534381,0.00018573,2]
[388368090,1759128634203,-160.8622456,0.00018573,2]
[388368091,1759128634213,-201.88271563,0.00018589,2]
[388368092,1759128634223,-151.0,0.00018589,2]
[388368093,1759128634234,-151.0,0.00018589,2]
[388368094,1759128634244,-151.0,0.00018589,2]
[388368095,1759128634253,-200.0,0.00018589,2]
[388368096,1759128634263,-151.0,0.00018589,2]
[388368097,1759128634273,-151.0,0.00018589,2]
[388368098,1759128634283,-266.4064294,0.00018589,2]
[388368099,1759128634293,-151.0,0.00018589,2]
[388368100,1759128634303,-151.0,0.00018589,2]
[388368101,1759128634313,-151.0,0.00018589,2]
[388368102,1759128634328,-151.0,0.00018589,2]
[388368103,1759128634338,-151.0,0.00018589,2]
[388368104,1759128634348,-200.0,0.00018589,2]
[388368105,1759128634358,-174.82118171,0.00018599,2]
[388368106,1759128634370,-595.80908037,0.00018599,2]
[388368107,1759128634380,-500.0,0.00018599,2]
[388368108,1759128634390,-500.0,0.00018599,2]
[388368109,1759128634403,-500.0,0.00018599,2]
[388368110,1759128634412,-500.0,0.00018599,2]
[388368111,1759128634422,-500.0,0.00018599,2]
[388368112,1759128634432,-500.0,0.00018599,2]
[388368113,1759128634442,-500.0,0.00018599,2]
[388368114,1759128634451,-500.0,0.00018599,2]
[388368115,1759128634462,-500.0,0.00018599,2]
[388368116,1759128634472,-348.40965205,0.00018599,2]
[388368117,1759128634623,-151.59034795,0.00018599,2]
[388368118,1759128634633,-500.0,0.00018599,2]
[388368119,1759128634643,-254.80603476,0.00018599,2]
[388368120,1759128634652,-294.36689292,0.00018599,2]
[388368121,1759128634699,-121.57411282,0.00018599,2]
[388368122,1759128634709,-500.0,0.00018599,2]
[388368123,1759128634719,-152.83,0.000186,2]
[388368124,1759128634729,-152.25,0.000186,2]
[388368125,1759128634738,-152.79,0.000186,2]
[388368126,1759128634748,-152.05,0.000186,2]
[388368127,1759128634758,-151.57,0.000186,2]
[388368128,1759128634768,-612.15697387,0.00018644,2]
[388368129,1759128635092,-29.51422566,0.00018686,2]
[388368239,1759128639967,-150.48577434,0.00018686,2]
[388368241,1759128639977,-223.77,0.00018691,2]
[388368243,1759128639987,-151.0,0.00018695,2]
[388368245,1759128639997,-500.0,0.00018695,2]
[388368247,1759128640006,-500.0,0.00018695,2]
[388368249,1759128640016,-500.0,0.00018695,2]